[Event "Titled Tuesday Blitz August 09 Early 2022"]
[White "Yurovskykh, Oleksandr"]
[Black "Belov, Vladimir"]
[WhiteFideId "14134020"]
[BlackFideId "4132394"]
[WhiteElo "2292"]
[BlackElo "2501"]
[Result "0-1"]
[Round "03"]
[TimeControl "180+1"]
[Date "2022.08.09"]
[WhiteClock "0:00:02"]
[BlackClock "0:00:16"]

1. d4 {[%clk 0:03:00]}  Nf6 {[%clk 0:02:59]} 2. Nf3 {[%clk 0:02:59]}  g6 {[%clk 0:02:59]} 3. Bg5 {[%clk 0:03:00]}  Bg7 {[%clk 0:03:00]} 4. Nbd2 {[%clk 0:03:00]}  O-O {[%clk 0:02:59]} 5. c3 {[%clk 0:03:01]}  d5 {[%clk 0:02:59]} 6. e3 {[%clk 0:03:01]}  c5 {[%clk 0:02:58]} 7. Be2 {[%clk 0:03:01]}  Nc6 {[%clk 0:02:52]} 8. O-O {[%clk 0:03:00]}  Qb6 {[%clk 0:02:52]} 9. Qb3 {[%clk 0:02:53]}  c4 {[%clk 0:02:48]} 10. Qc2 {[%clk 0:02:45]}  Bf5 {[%clk 0:02:48]} 11. Qc1 {[%clk 0:02:45]}  Qc7 {[%clk 0:02:43]} 12. b3 {[%clk 0:02:39]}  b5 {[%clk 0:02:42]} 13. a4 {[%clk 0:02:39]}  a6 {[%clk 0:02:42]} 14. Qb2 {[%clk 0:02:26]}  Rab8 {[%clk 0:02:34]} 15. Bf4 {[%clk 0:02:24]}  Qd7 {[%clk 0:02:21]} 16. Bxb8 {[%clk 0:02:24]}  Rxb8 {[%clk 0:02:22]} 17. axb5 {[%clk 0:02:24]}  axb5 {[%clk 0:02:22]} 18. b4 {[%clk 0:02:05]}  h6 {[%clk 0:02:16]} 19. Ra6 {[%clk 0:02:04]}  g5 {[%clk 0:02:14]} 20. Rfa1 {[%clk 0:02:00]}  Kh7 {[%clk 0:01:48]} 21. Bd1 {[%clk 0:01:59]}  e6 {[%clk 0:01:24]} 22. Bc2 {[%clk 0:01:59]}  Ng8 {[%clk 0:01:09]} 23. Qb1 {[%clk 0:01:54]}  Nge7 {[%clk 0:01:07]} 24. e4 {[%clk 0:01:49]}  Bg6 {[%clk 0:01:04]} 25. e5 {[%clk 0:01:39]}  Nf5 {[%clk 0:01:01]} 26. g4 {[%clk 0:01:25]}  Nfe7 {[%clk 0:01:00]} 27. h4 {[%clk 0:01:25]}  gxh4 {[%clk 0:00:39]} 28. Nxh4 {[%clk 0:01:25]}  Bxc2 {[%clk 0:00:39]} 29. Qxc2+ {[%clk 0:01:25]}  Kg8 {[%clk 0:00:39]} 30. f4 {[%clk 0:01:21]}  f6 {[%clk 0:00:36]} 31. Ng6 {[%clk 0:01:16]}  fxe5 {[%clk 0:00:33]} 32. fxe5 {[%clk 0:01:14]}  Qe8 {[%clk 0:00:32]} 33. Nxe7+ {[%clk 0:01:12]}  Nxe7 {[%clk 0:00:33]} 34. Rxe6 {[%clk 0:01:08]}  Qf7 {[%clk 0:00:33]} 35. Rea6 {[%clk 0:00:57]}  Qf4 {[%clk 0:00:33]} 36. Nf1 {[%clk 0:00:46]}  Rf8 {[%clk 0:00:33]} 37. Qg2 {[%clk 0:00:36]}  Kh7 {[%clk 0:00:30]} 38. Ra7 {[%clk 0:00:32]}  Ng6 {[%clk 0:00:29]} 39. Rd7 {[%clk 0:00:25]}  Nh4 {[%clk 0:00:23]} 40. Qg3 {[%clk 0:00:24]}  Nf3+ {[%clk 0:00:19]} 41. Kg2 {[%clk 0:00:23]}  Qe4 {[%clk 0:00:19]} 42. Kh3 {[%clk 0:00:09]}  Ng5+ {[%clk 0:00:17]} 43. Kh4 {[%clk 0:00:02]}  Rf3 {[%clk 0:00:17]} 44. Raa7 {[%clk 0:00:01]}  Rxg3 {[%clk 0:00:15]} 45. Rxg7+ {[%clk 0:00:02]}  Kh8 {[%clk 0:00:16]} 0-1


[Site "https://www.chess.com"]

[Event "Titled Tuesday Blitz August 09 Early 2022"]
[White "Zaloznyy, Mike"]
[Black "Stepanencu, Nicodim-Cosmin"]
[WhiteFideId "2023075"]
[BlackFideId "1256220"]
[WhiteElo "2003"]
[BlackElo "1941"]
[Result "0-1"]
[Round "03"]
[TimeControl "180+1"]
[Date "2022.08.09"]
[WhiteClock "0:00:01"]
[BlackClock "0:01:39"]

1. Nf3 {[%clk 0:03:00]}  g6 {[%clk 0:02:56]} 2. e3 {[%clk 0:02:53]}  Bg7 {[%clk 0:02:56]} 3. d4 {[%clk 0:02:53]}  Nf6 {[%clk 0:02:56]} 4. b3 {[%clk 0:02:50]}  O-O {[%clk 0:02:56]} 5. Bb2 {[%clk 0:02:50]}  d5 {[%clk 0:02:56]} 6. c4 {[%clk 0:02:50]}  c6 {[%clk 0:02:54]} 7. Nc3 {[%clk 0:02:45]}  Bg4 {[%clk 0:02:53]} 8. Be2 {[%clk 0:02:44]}  Nbd7 {[%clk 0:02:53]} 9. h3 {[%clk 0:02:44]}  Bxf3 {[%clk 0:02:53]} 10. Bxf3 {[%clk 0:02:45]}  e6 {[%clk 0:02:53]} 11. O-O {[%clk 0:02:44]}  b6 {[%clk 0:02:46]} 12. a4 {[%clk 0:02:43]}  Rb8 {[%clk 0:02:38]} 13. a5 {[%clk 0:02:39]}  b5 {[%clk 0:02:39]} 14. cxb5 {[%clk 0:02:30]}  cxb5 {[%clk 0:02:38]} 15. a6 {[%clk 0:02:14]}  Qb6 {[%clk 0:02:33]} 16. b4 {[%clk 0:02:00]}  Rfc8 {[%clk 0:02:31]} 17. Be2 {[%clk 0:01:59]}  Qc6 {[%clk 0:02:27]} 18. Ra5 {[%clk 0:01:55]}  Qd6 {[%clk 0:02:16]} 19. Nxb5 {[%clk 0:01:44]}  Qxb4 {[%clk 0:02:16]} 20. Qa1 {[%clk 0:01:29]}  Ne4 {[%clk 0:01:54]} 21. Ra4 {[%clk 0:01:05]}  Qd2 {[%clk 0:01:49]} 22. Re1 {[%clk 0:00:55]}  Rxb5 {[%clk 0:01:45]} 23. Bxb5 {[%clk 0:00:51]}  Qxf2+ {[%clk 0:01:45]} 24. Kh1 {[%clk 0:00:24]}  Rc2 {[%clk 0:01:45]} 25. Rg1 {[%clk 0:00:05]}  Rxb2 {[%clk 0:01:45]} 26. Bc6 {[%clk 0:00:02]}  Bf8 {[%clk 0:01:42]} 27. Bxd7 {[%clk 0:00:01]}  Ng3+ {[%clk 0:01:39]} 0-1


[Site "https://www.chess.com"]

[Event "Titled Tuesday Blitz August 09 Early 2022"]
[White "Zenin, Dmitry"]
[Black "Zaichenko, Daria"]
[WhiteFideId "4127897"]
[BlackFideId "4197453"]
[WhiteElo "2215"]
[BlackElo "2039"]
[Result "1/2-1/2"]
[Round "03"]
[TimeControl "180+1"]
[Date "2022.08.09"]
[WhiteClock "0:00:10"]
[BlackClock "0:00:23"]

1. c4 {[%clk 0:03:00]}  e6 {[%clk 0:02:58]} 2. Nc3 {[%clk 0:03:00]}  d5 {[%clk 0:02:58]} 3. d4 {[%clk 0:02:59]}  Be7 {[%clk 0:02:58]} 4. cxd5 {[%clk 0:02:58]}  exd5 {[%clk 0:02:58]} 5. Bf4 {[%clk 0:02:58]}  c6 {[%clk 0:02:58]} 6. e3 {[%clk 0:02:58]}  Bf5 {[%clk 0:02:57]} 7. g4 {[%clk 0:02:56]}  Bg6 {[%clk 0:02:56]} 8. h4 {[%clk 0:02:42]}  h5 {[%clk 0:02:39]} 9. g5 {[%clk 0:02:39]}  Bf5 {[%clk 0:02:39]} 10. Bd3 {[%clk 0:02:17]}  Be6 {[%clk 0:02:27]} 11. Nge2 {[%clk 0:02:08]}  Nd7 {[%clk 0:02:27]} 12. Ng3 {[%clk 0:02:06]}  Qb6 {[%clk 0:02:25]} 13. Rb1 {[%clk 0:02:04]}  c5 {[%clk 0:02:22]} 14. Nb5 {[%clk 0:01:45]}  Rc8 {[%clk 0:02:18]} 15. Be2 {[%clk 0:01:30]}  f6 {[%clk 0:02:11]} 16. Bxh5+ {[%clk 0:01:25]}  Kd8 {[%clk 0:02:09]} 17. Nc3 {[%clk 0:01:19]}  fxg5 {[%clk 0:02:05]} 18. hxg5 {[%clk 0:01:18]}  cxd4 {[%clk 0:01:55]} 19. exd4 {[%clk 0:01:17]}  Rc4 {[%clk 0:01:54]} 20. Be3 {[%clk 0:01:12]}  Bd6 {[%clk 0:01:49]} 21. Be2 {[%clk 0:01:06]}  Rxh1+ {[%clk 0:01:44]} 22. Nxh1 {[%clk 0:01:06]}  Bf5 {[%clk 0:01:43]} 23. Bxc4 {[%clk 0:01:03]}  dxc4 {[%clk 0:01:40]} 24. Rc1 {[%clk 0:00:59]}  Qxb2 {[%clk 0:01:39]} 25. Qd2 {[%clk 0:00:56]}  Qa3 {[%clk 0:01:32]} 26. Nb5 {[%clk 0:00:52]}  Qb4 {[%clk 0:01:27]} 27. Nxd6 {[%clk 0:00:50]}  Qxd6 {[%clk 0:01:27]} 28. Rxc4 {[%clk 0:00:43]}  Qd5 {[%clk 0:01:20]} 29. Ng3 {[%clk 0:00:43]}  Qxc4 {[%clk 0:01:18]} 30. Nxf5 {[%clk 0:00:42]}  Ne7 {[%clk 0:01:13]} 31. Nxe7 {[%clk 0:00:41]}  Kxe7 {[%clk 0:01:13]} 32. Qe2 {[%clk 0:00:36]}  Qxe2+ {[%clk 0:01:11]} 33. Kxe2 {[%clk 0:00:36]}  g6 {[%clk 0:01:11]} 34. Kd3 {[%clk 0:00:30]}  Ke6 {[%clk 0:01:10]} 35. Kc4 {[%clk 0:00:29]}  Nb6+ {[%clk 0:01:07]} 36. Kb5 {[%clk 0:00:26]}  Kd5 {[%clk 0:01:05]} 37. a4 {[%clk 0:00:23]}  Nc4 {[%clk 0:01:04]} 38. Kb4 {[%clk 0:00:20]}  Nd6 {[%clk 0:00:56]} 39. Kc3 {[%clk 0:00:19]}  b5 {[%clk 0:00:52]} 40. axb5 {[%clk 0:00:18]}  Nxb5+ {[%clk 0:00:51]} 41. Kd3 {[%clk 0:00:18]}  a5 {[%clk 0:00:49]} 42. Bd2 {[%clk 0:00:11]}  a4 {[%clk 0:00:46]} 43. Bc3 {[%clk 0:00:11]}  Nxc3 {[%clk 0:00:31]} 44. Kxc3 {[%clk 0:00:10]}  a3 {[%clk 0:00:31]} 45. Kb3 {[%clk 0:00:11]}  Kxd4 {[%clk 0:00:32]} 46. Kxa3 {[%clk 0:00:11]}  Ke4 {[%clk 0:00:32]} 47. Kb3 {[%clk 0:00:11]}  Kf4 {[%clk 0:00:23]} 48. Kc3 {[%clk 0:00:11]}  Kxg5 {[%clk 0:00:23]} 49. Kd3 {[%clk 0:00:11]}  Kf4 {[%clk 0:00:23]} 50. Ke2 {[%clk 0:00:10]}  g5 {[%clk 0:00:23]} 51. Kf1 {[%clk 0:00:10]}  Kf3 {[%clk 0:00:22]} 52. Kg1 {[%clk 0:00:10]}  g4 {[%clk 0:00:23]} 53. Kf1 {[%clk 0:00:10]}  g3 {[%clk 0:00:23]} 54. fxg3 {[%clk 0:00:10]}  Kxg3 {[%clk 0:00:23]} 1/2-1/2


[Site "https://www.chess.com"]

[Event "Titled Tuesday Blitz August 09 Early 2022"]
[White "Zierk, Steven"]
[Black "Averjanov, Alexey"]
[WhiteFideId "2034255"]
[BlackFideId "14109867"]
[WhiteElo "2494"]
[BlackElo "2653"]
[Result "1-0"]
[Round "03"]
[TimeControl "180+1"]
[Date "2022.08.09"]
[WhiteClock "0:00:23"]
[BlackClock "0:00:16"]

1. e4 {[%clk 0:02:57]}  c6 {[%clk 0:02:59]} 2. d4 {[%clk 0:02:57]}  d5 {[%clk 0:02:59]} 3. exd5 {[%clk 0:02:58]}  cxd5 {[%clk 0:02:58]} 4. Bd3 {[%clk 0:02:58]}  Nc6 {[%clk 0:02:58]} 5. c3 {[%clk 0:02:59]}  Qc7 {[%clk 0:02:57]} 6. Ne2 {[%clk 0:02:59]}  Bg4 {[%clk 0:02:57]} 7. O-O {[%clk 0:02:55]}  Bh5 {[%clk 0:02:57]} 8. f4 {[%clk 0:02:54]}  e6 {[%clk 0:02:54]} 9. Qe1 {[%clk 0:02:54]}  Bxe2 {[%clk 0:02:50]} 10. Qxe2 {[%clk 0:02:53]}  Bd6 {[%clk 0:02:49]} 11. g3 {[%clk 0:02:43]}  Nf6 {[%clk 0:02:49]} 12. Nd2 {[%clk 0:02:40]}  h5 {[%clk 0:02:49]} 13. Nf3 {[%clk 0:02:40]}  g6 {[%clk 0:02:48]} 14. Bd2 {[%clk 0:02:24]}  Ne7 {[%clk 0:02:47]} 15. Kg2 {[%clk 0:01:47]}  Nf5 {[%clk 0:02:45]} 16. Ne5 {[%clk 0:01:47]}  Kf8 {[%clk 0:02:45]} 17. h3 {[%clk 0:01:38]}  Kg7 {[%clk 0:02:42]} 18. g4 {[%clk 0:01:37]}  hxg4 {[%clk 0:02:40]} 19. hxg4 {[%clk 0:01:38]}  Nh4+ {[%clk 0:02:33]} 20. Kf2 {[%clk 0:01:32]}  Rh7 {[%clk 0:02:27]} 21. Rh1 {[%clk 0:01:31]}  Rah8 {[%clk 0:02:26]} 22. Rh3 {[%clk 0:01:28]}  Nd7 {[%clk 0:02:12]} 23. Rah1 {[%clk 0:01:22]}  Nxe5 {[%clk 0:02:06]} 24. fxe5 {[%clk 0:01:18]}  Be7 {[%clk 0:02:06]} 25. Ke1 {[%clk 0:00:49]}  Qd8 {[%clk 0:02:05]} 26. Kd1 {[%clk 0:00:48]}  Bg5 {[%clk 0:02:03]} 27. Be1 {[%clk 0:00:44]}  Rh6 {[%clk 0:01:52]} 28. Bg3 {[%clk 0:00:37]}  a6 {[%clk 0:01:51]} 29. Qf2 {[%clk 0:00:34]}  Qe7 {[%clk 0:01:49]} 30. a4 {[%clk 0:00:28]}  a5 {[%clk 0:01:48]} 31. Kc2 {[%clk 0:00:27]}  b6 {[%clk 0:01:48]} 32. Kb1 {[%clk 0:00:26]}  R8h7 {[%clk 0:01:47]} 33. Bf4 {[%clk 0:00:22]}  Rh8 {[%clk 0:01:41]} 34. Rf1 {[%clk 0:00:19]}  Bxf4 {[%clk 0:01:36]} 35. Qxf4 {[%clk 0:00:20]}  g5 {[%clk 0:01:35]} 36. Qf2 {[%clk 0:00:19]}  Ng6 {[%clk 0:01:33]} 37. Rxh6 {[%clk 0:00:18]}  Rxh6 {[%clk 0:01:33]} 38. Bxg6 {[%clk 0:00:18]}  Rxg6 {[%clk 0:01:33]} 39. Qe2 {[%clk 0:00:18]}  Rh6 {[%clk 0:01:31]} 40. Qb5 {[%clk 0:00:18]}  Qd8 {[%clk 0:01:23]} 41. Qc6 {[%clk 0:00:16]}  Rh8 {[%clk 0:01:19]} 42. Qb7 {[%clk 0:00:15]}  Rf8 {[%clk 0:01:19]} 43. Rf6 {[%clk 0:00:15]}  Kg8 {[%clk 0:01:16]} 44. Qc6 {[%clk 0:00:14]}  Kg7 {[%clk 0:01:14]} 45. Qb5 {[%clk 0:00:14]}  Rh8 {[%clk 0:01:09]} 46. Qf1 {[%clk 0:00:14]}  Qe8 {[%clk 0:01:06]} 47. Qc1 {[%clk 0:00:14]}  Qxa4 {[%clk 0:01:03]} 48. Qxg5+ {[%clk 0:00:14]}  Kf8 {[%clk 0:01:03]} 49. Rf1 {[%clk 0:00:15]}  Rh7 {[%clk 0:00:50]} 50. Qd8+ {[%clk 0:00:10]}  Kg7 {[%clk 0:00:50]} 51. g5 {[%clk 0:00:10]}  Qb5 {[%clk 0:00:44]} 52. Qf6+ {[%clk 0:00:10]}  Kg8 {[%clk 0:00:44]} 53. g6 {[%clk 0:00:10]}  Qd3+ {[%clk 0:00:37]} 54. Ka1 {[%clk 0:00:10]}  Qxg6 {[%clk 0:00:37]} 55. Qd8+ {[%clk 0:00:09]}  Kg7 {[%clk 0:00:36]} 56. Qxb6 {[%clk 0:00:10]}  Qg2 {[%clk 0:00:33]} 57. Rb1 {[%clk 0:00:09]}  a4 {[%clk 0:00:33]} 58. Qb4 {[%clk 0:00:08]}  Rh1 {[%clk 0:00:22]} 59. Qxa4 {[%clk 0:00:07]}  Rxb1+ {[%clk 0:00:22]} 60. Kxb1 {[%clk 0:00:08]}  Qe4+ {[%clk 0:00:21]} 61. Qc2 {[%clk 0:00:08]}  Qe1+ {[%clk 0:00:21]} 62. Ka2 {[%clk 0:00:09]}  Qf1 {[%clk 0:00:20]} 63. b4 {[%clk 0:00:08]}  Qa6+ {[%clk 0:00:18]} 64. Kb2 {[%clk 0:00:09]}  f6 {[%clk 0:00:18]} 65. Qg2+ {[%clk 0:00:08]}  Kf7 {[%clk 0:00:18]} 66. exf6 {[%clk 0:00:07]}  Kxf6 {[%clk 0:00:19]} 67. Qh2 {[%clk 0:00:07]}  Qc4 {[%clk 0:00:15]} 68. Qg3 {[%clk 0:00:06]}  Ke7 {[%clk 0:00:13]} 69. Qf3 {[%clk 0:00:04]}  Kd6 {[%clk 0:00:11]} 70. Kc2 {[%clk 0:00:05]}  Qa2+ {[%clk 0:00:11]} 71. Kd1 {[%clk 0:00:05]}  Qb1+ {[%clk 0:00:11]} 72. Ke2 {[%clk 0:00:05]}  Qc2+ {[%clk 0:00:11]} 73. Kf1 {[%clk 0:00:06]}  Qc1+ {[%clk 0:00:11]} 74. Kg2 {[%clk 0:00:06]}  Qe1 {[%clk 0:00:10]} 75. Qg3+ {[%clk 0:00:06]}  Qxg3+ {[%clk 0:00:08]} 76. Kxg3 {[%clk 0:00:07]}  e5 {[%clk 0:00:09]} 77. dxe5+ {[%clk 0:00:06]}  Kxe5 {[%clk 0:00:10]} 78. Kf3 {[%clk 0:00:06]}  d4 {[%clk 0:00:07]} 79. c4 {[%clk 0:00:06]}  d3 {[%clk 0:00:08]} 80. Ke3 {[%clk 0:00:07]}  d2 {[%clk 0:00:08]} 81. Kxd2 {[%clk 0:00:07]}  Kd4 {[%clk 0:00:08]} 82. c5 {[%clk 0:00:08]}  Kd5 {[%clk 0:00:09]} 83. Kc3 {[%clk 0:00:09]}  Kc6 {[%clk 0:00:09]} 84. Kc4 {[%clk 0:00:10]}  Kb7 {[%clk 0:00:10]} 85. b5 {[%clk 0:00:11]}  Kc7 {[%clk 0:00:11]} 86. b6+ {[%clk 0:00:11]}  Kc6 {[%clk 0:00:11]} 87. Kb4 {[%clk 0:00:12]}  Kb7 {[%clk 0:00:12]} 88. Kb5 {[%clk 0:00:13]}  Kb8 {[%clk 0:00:12]} 89. c6 {[%clk 0:00:13]}  Ka8 {[%clk 0:00:13]} 90. Ka6 {[%clk 0:00:14]}  Kb8 {[%clk 0:00:13]} 91. c7+ {[%clk 0:00:15]}  Kc8 {[%clk 0:00:14]} 92. Ka7 {[%clk 0:00:15]}  Kd7 {[%clk 0:00:14]} 93. Kb7 {[%clk 0:00:16]}  Kd6 {[%clk 0:00:15]} 94. c8=Q {[%clk 0:00:17]}  Kd5 {[%clk 0:00:15]} 95. Qc6+ {[%clk 0:00:18]}  Kd4 {[%clk 0:00:15]} 96. Kc7 {[%clk 0:00:19]}  Kd3 {[%clk 0:00:16]} 97. b7 {[%clk 0:00:20]}  Kd2 {[%clk 0:00:16]} 98. b8=Q {[%clk 0:00:20]}  Kd1 {[%clk 0:00:17]} 99. Qbb5 {[%clk 0:00:21]}  Kd2 {[%clk 0:00:17]} 100. Qcc4 {[%clk 0:00:22]}  Ke1 {[%clk 0:00:17]} 101. Qbb3 {[%clk 0:00:22]}  Kf2 {[%clk 0:00:16]} 102. Qcc2+ {[%clk 0:00:23]}  Ke1 {[%clk 0:00:16]} 103. Qbb1# {[%clk 0:00:23]} 1-0


[Site "https://www.chess.com"]

[Event "Titled Tuesday Blitz August 09 Early 2022"]
[White "parintele_chess"]
[Black "Jorquera, Marcelo"]
[BlackFideId "3401197"]
[WhiteElo "2212"]
[BlackElo "2136"]
[Result "0-1"]
[Round "03"]
[TimeControl "180+1"]
[Date "2022.08.09"]
[WhiteClock "0:00:40"]
[BlackClock "0:00:41"]

1. d4 {[%clk 0:03:00]}  Nf6 {[%clk 0:02:59]} 2. c4 {[%clk 0:03:00]}  g6 {[%clk 0:02:59]} 3. Nc3 {[%clk 0:02:59]}  Bg7 {[%clk 0:02:59]} 4. e4 {[%clk 0:02:59]}  d6 {[%clk 0:03:00]} 5. Be2 {[%clk 0:03:00]}  O-O {[%clk 0:03:00]} 6. Bg5 {[%clk 0:03:00]}  Na6 {[%clk 0:02:56]} 7. f4 {[%clk 0:03:00]}  c6 {[%clk 0:02:54]} 8. Nf3 {[%clk 0:02:58]}  Nc7 {[%clk 0:02:53]} 9. O-O {[%clk 0:02:54]}  Ne6 {[%clk 0:02:48]} 10. Bxf6 {[%clk 0:02:33]}  Bxf6 {[%clk 0:02:47]} 11. e5 {[%clk 0:02:27]}  Bg7 {[%clk 0:02:44]} 12. f5 {[%clk 0:02:17]}  gxf5 {[%clk 0:02:43]} 13. Kh1 {[%clk 0:01:56]}  dxe5 {[%clk 0:02:37]} 14. Nxe5 {[%clk 0:01:53]}  Qxd4 {[%clk 0:02:32]} 15. Rxf5 {[%clk 0:01:54]}  Bxe5 {[%clk 0:02:27]} 16. Qf1 {[%clk 0:01:48]}  Bg7 {[%clk 0:01:57]} 17. Rd1 {[%clk 0:01:47]}  Qb6 {[%clk 0:01:53]} 18. Bh5 {[%clk 0:01:38]}  Bf6 {[%clk 0:01:30]} 19. Rd3 {[%clk 0:01:10]}  Ng7 {[%clk 0:01:29]} 20. Rg3 {[%clk 0:01:04]}  Bxf5 {[%clk 0:01:28]} 21. Qxf5 {[%clk 0:01:04]}  Kh8 {[%clk 0:01:21]} 22. Qg4 {[%clk 0:01:03]}  Nxh5 {[%clk 0:01:11]} 23. Qxh5 {[%clk 0:01:03]}  Qf2 {[%clk 0:01:04]} 24. Qd1 {[%clk 0:00:51]}  Rad8 {[%clk 0:01:00]} 25. Qb1 {[%clk 0:00:51]}  Bxc3 {[%clk 0:00:44]} 26. bxc3 {[%clk 0:00:40]}  Rg8 {[%clk 0:00:41]} 0-1


[Site "https://www.chess.com"]

[Event "Titled Tuesday Blitz August 09 Early 2022"]
[White "Aaditya Dhingra"]
[Black "Wieczorek, Oskar"]
[WhiteFideId "25678191"]
[BlackFideId "1133950"]
[WhiteElo "1849"]
[BlackElo "2302"]
[Result "0-1"]
[Round "04"]
[TimeControl "180+1"]
[Date "2022.08.09"]
[WhiteClock "0:00:04"]
[BlackClock "0:00:27"]

1. e4 {[%clk 0:02:56]}  c5 {[%clk 0:02:58]} 2. Nf3 {[%clk 0:02:56]}  e6 {[%clk 0:02:57]} 3. d3 {[%clk 0:02:54]}  Nc6 {[%clk 0:02:54]} 4. Nbd2 {[%clk 0:02:54]}  g6 {[%clk 0:02:55]} 5. g3 {[%clk 0:02:54]}  Bg7 {[%clk 0:02:55]} 6. Bg2 {[%clk 0:02:55]}  d6 {[%clk 0:02:56]} 7. O-O {[%clk 0:02:55]}  Nge7 {[%clk 0:02:57]} 8. Re1 {[%clk 0:02:55]}  O-O {[%clk 0:02:57]} 9. Nf1 {[%clk 0:02:56]}  b6 {[%clk 0:02:56]} 10. h4 {[%clk 0:02:55]}  h6 {[%clk 0:02:54]} 11. N1h2 {[%clk 0:02:51]}  f5 {[%clk 0:02:46]} 12. exf5 {[%clk 0:02:20]}  gxf5 {[%clk 0:02:44]} 13. c3 {[%clk 0:02:14]}  e5 {[%clk 0:02:41]} 14. h5 {[%clk 0:02:10]}  d5 {[%clk 0:02:31]} 15. Nh4 {[%clk 0:02:03]}  e4 {[%clk 0:02:28]} 16. Bf4 {[%clk 0:01:59]}  Be6 {[%clk 0:02:25]} 17. Bh3 {[%clk 0:01:51]}  Qd7 {[%clk 0:02:15]} 18. Qd2 {[%clk 0:01:51]}  Kh7 {[%clk 0:02:14]} 19. Kh1 {[%clk 0:01:46]}  Rad8 {[%clk 0:02:11]} 20. f3 {[%clk 0:01:35]}  Ne5 {[%clk 0:02:00]} 21. dxe4 {[%clk 0:01:25]}  fxe4 {[%clk 0:01:58]} 22. Bxe6 {[%clk 0:01:23]}  Qxe6 {[%clk 0:01:59]} 23. fxe4 {[%clk 0:01:21]}  d4 {[%clk 0:01:56]} 24. cxd4 {[%clk 0:01:17]}  cxd4 {[%clk 0:01:52]} 25. Rac1 {[%clk 0:01:11]}  d3 {[%clk 0:01:45]} 26. Rc7 {[%clk 0:00:58]}  Nc4 {[%clk 0:01:34]} 27. Qd1 {[%clk 0:00:45]}  d2 {[%clk 0:01:27]} 28. Rg1 {[%clk 0:00:31]}  Nxb2 {[%clk 0:01:26]} 29. Qg4 {[%clk 0:00:30]}  Qxg4 {[%clk 0:01:20]} 30. Nxg4 {[%clk 0:00:31]}  d1=Q {[%clk 0:01:20]} 31. Rxd1 {[%clk 0:00:31]}  Rxd1+ {[%clk 0:01:17]} 32. Kh2 {[%clk 0:00:32]}  Rf7 {[%clk 0:01:01]} 33. Ng6 {[%clk 0:00:17]}  Nxg6 {[%clk 0:00:54]} 34. Rxf7 {[%clk 0:00:16]}  Nxf4 {[%clk 0:00:55]} 35. gxf4 {[%clk 0:00:16]}  Rd8 {[%clk 0:00:46]} 36. f5 {[%clk 0:00:15]}  Kg8 {[%clk 0:00:44]} 37. Rxa7 {[%clk 0:00:15]}  Rf8 {[%clk 0:00:39]} 38. Kg3 {[%clk 0:00:14]}  Nd3 {[%clk 0:00:39]} 39. Rd7 {[%clk 0:00:12]}  Nc5 {[%clk 0:00:38]} 40. Re7 {[%clk 0:00:10]}  Rf7 {[%clk 0:00:38]} 41. Re8+ {[%clk 0:00:10]}  Rf8 {[%clk 0:00:39]} 42. Re7 {[%clk 0:00:10]}  Ra8 {[%clk 0:00:34]} 43. f6 {[%clk 0:00:09]}  Bf8 {[%clk 0:00:35]} 44. f7+ {[%clk 0:00:05]}  Kg7 {[%clk 0:00:35]} 45. Re8 {[%clk 0:00:06]}  Ra3+ {[%clk 0:00:33]} 46. Kf4 {[%clk 0:00:06]}  Kxf7 {[%clk 0:00:33]} 47. Rc8 {[%clk 0:00:04]}  Ra4 {[%clk 0:00:31]} 48. Ne5+ {[%clk 0:00:04]}  Ke6 {[%clk 0:00:31]} 49. Rxf8 {[%clk 0:00:03]}  Rxe4+ {[%clk 0:00:31]} 50. Kf3 {[%clk 0:00:04]}  Rxe5 {[%clk 0:00:31]} 51. Rb8 {[%clk 0:00:04]}  Nd7 {[%clk 0:00:30]} 52. Re8+ {[%clk 0:00:04]}  Kf7 {[%clk 0:00:27]} 53. Rd8 {[%clk 0:00:04]}  Ke7 {[%clk 0:00:27]} 54. Rh8 {[%clk 0:00:02]}  Rxh5 {[%clk 0:00:27]} 55. Rh7+ {[%clk 0:00:03]}  Ke6 {[%clk 0:00:27]} 56. Kg4 {[%clk 0:00:04]}  Nf6+ {[%clk 0:00:27]} 0-1


[Site "https://www.chess.com"]

[Event "Titled Tuesday Blitz August 09 Early 2022"]
[White "Abdrlauf, Elham"]
[Black "Solon, Nathan"]
[WhiteFideId "1533533"]
[BlackFideId "2017229"]
[WhiteElo "2430"]
[BlackElo "2651"]
[Result "1-0"]
[Round "04"]
[TimeControl "180+1"]
[Date "2022.08.09"]
[WhiteClock "0:00:50"]
[BlackClock "0:00:01"]

1. e4 {[%clk 0:02:59]}  c6 {[%clk 0:02:59]} 2. d4 {[%clk 0:03:00]}  d5 {[%clk 0:03:00]} 3. Nc3 {[%clk 0:03:00]}  dxe4 {[%clk 0:03:01]} 4. Nxe4 {[%clk 0:03:01]}  Nf6 {[%clk 0:03:01]} 5. Nxf6+ {[%clk 0:03:02]}  exf6 {[%clk 0:03:02]} 6. c3 {[%clk 0:03:03]}  Bd6 {[%clk 0:03:02]} 7. Bd3 {[%clk 0:03:04]}  O-O {[%clk 0:03:02]} 8. Qc2 {[%clk 0:03:04]}  Re8+ {[%clk 0:03:02]} 9. Ne2 {[%clk 0:03:05]}  h5 {[%clk 0:03:03]} 10. O-O {[%clk 0:03:06]}  h4 {[%clk 0:03:03]} 11. Bf4 {[%clk 0:03:07]}  Na6 {[%clk 0:03:02]} 12. Rfe1 {[%clk 0:03:06]}  Nc7 {[%clk 0:02:49]} 13. h3 {[%clk 0:03:06]}  Nd5 {[%clk 0:02:43]} 14. Bxd6 {[%clk 0:03:06]}  Qxd6 {[%clk 0:02:44]} 15. Qd2 {[%clk 0:03:06]}  b5 {[%clk 0:02:29]} 16. a4 {[%clk 0:02:58]}  Bd7 {[%clk 0:02:16]} 17. axb5 {[%clk 0:02:54]}  cxb5 {[%clk 0:02:17]} 18. Ra5 {[%clk 0:02:55]}  a6 {[%clk 0:02:06]} 19. Rea1 {[%clk 0:02:55]}  g5 {[%clk 0:02:00]} 20. c4 {[%clk 0:02:43]}  bxc4 {[%clk 0:01:53]} 21. Bxc4 {[%clk 0:02:43]}  Nb4 {[%clk 0:01:50]} 22. Nc3 {[%clk 0:02:19]}  Kg7 {[%clk 0:01:36]} 23. Nd1 {[%clk 0:01:24]}  Re4 {[%clk 0:01:26]} 24. Ne3 {[%clk 0:01:21]}  Rxd4 {[%clk 0:01:22]} 25. Qc3 {[%clk 0:01:21]}  Rc8 {[%clk 0:01:16]} 26. b3 {[%clk 0:01:20]}  Nc6 {[%clk 0:00:49]} 27. Rxa6 {[%clk 0:01:15]}  Qe5 {[%clk 0:00:48]} 28. Qe1 {[%clk 0:01:13]}  Re4 {[%clk 0:00:41]} 29. Rd1 {[%clk 0:01:08]}  Nd4 {[%clk 0:00:41]} 30. Ra5 {[%clk 0:00:56]}  Qc7 {[%clk 0:00:29]} 31. Rd5 {[%clk 0:00:53]}  Qa7 {[%clk 0:00:14]} 32. Qd2 {[%clk 0:00:51]}  Be6 {[%clk 0:00:01]} 33. Rxd4 {[%clk 0:00:50]} 1-0


[Site "https://www.chess.com"]